[Event "Titled Tuesday Blitz May 30 Early 2023"]
[White "Le, Tuan Minh"]
[Black "Nihal Sarin"]
[WhiteFideId "12401153"]
[BlackFideId "25092340"]
[WhiteElo "2566"]
[BlackElo "2689"]
[Result "0-1"]
[Round "07"]
[TimeControl "180+2"]
[Date "2023.05.30"]
[WhiteClock "0:00:00"]
[BlackClock "0:00:08"]

1. d4 {[%clk 0:02:59]}  Nf6 {[%clk 0:02:59]} 2. Nf3 {[%clk 0:02:55]}  d5 {[%clk 0:03:00]} 3. Bg5 {[%clk 0:02:54]}  Ne4 {[%clk 0:02:58]} 4. Bf4 {[%clk 0:02:54]}  c5 {[%clk 0:02:56]} 5. c3 {[%clk 0:02:54]}  Nc6 {[%clk 0:02:56]} 6. e3 {[%clk 0:02:54]}  Bf5 {[%clk 0:02:52]} 7. Qb3 {[%clk 0:02:51]}  Qd7 {[%clk 0:02:44]} 8. Nbd2 {[%clk 0:02:47]}  c4 {[%clk 0:02:37]} 9. Qd1 {[%clk 0:02:45]}  e6 {[%clk 0:02:34]} 10. Nh4 {[%clk 0:02:15]}  Nxd2 {[%clk 0:02:10]} 11. Qxd2 {[%clk 0:02:14]}  Bg4 {[%clk 0:01:52]} 12. h3 {[%clk 0:02:12]}  Bh5 {[%clk 0:01:53]} 13. g4 {[%clk 0:02:10]}  Be7 {[%clk 0:01:53]} 14. Nf5 {[%clk 0:01:53]}  exf5 {[%clk 0:01:47]} 15. gxh5 {[%clk 0:01:53]}  g5 {[%clk 0:01:43]} 16. hxg6 {[%clk 0:01:36]}  hxg6 {[%clk 0:01:44]} 17. Bg2 {[%clk 0:01:36]}  Bd6 {[%clk 0:01:21]} 18. Bxd6 {[%clk 0:01:25]}  Qxd6 {[%clk 0:01:22]} 19. b3 {[%clk 0:01:22]}  Na5 {[%clk 0:01:21]} 20. Rb1 {[%clk 0:01:07]}  b6 {[%clk 0:01:13]} 21. Kf1 {[%clk 0:01:05]}  Kf8 {[%clk 0:01:10]} 22. Bf3 {[%clk 0:01:04]}  Kg7 {[%clk 0:01:10]} 23. Kg2 {[%clk 0:01:05]}  Rh4 {[%clk 0:01:10]} 24. bxc4 {[%clk 0:00:58]}  Nxc4 {[%clk 0:01:11]} 25. Qe2 {[%clk 0:00:57]}  a6 {[%clk 0:01:05]} 26. Kg1 {[%clk 0:00:52]}  Re8 {[%clk 0:01:03]} 27. Re1 {[%clk 0:00:41]}  b5 {[%clk 0:00:50]} 28. Qd3 {[%clk 0:00:39]}  Reh8 {[%clk 0:00:40]} 29. Kg2 {[%clk 0:00:35]}  Qd8 {[%clk 0:00:38]} 30. Reg1 {[%clk 0:00:29]}  Qd6 {[%clk 0:00:32]} 31. Rb1 {[%clk 0:00:20]}  Qe6 {[%clk 0:00:31]} 32. Rbe1 {[%clk 0:00:18]}  Nd6 {[%clk 0:00:31]} 33. a4 {[%clk 0:00:16]}  Ne4 {[%clk 0:00:21]} 34. axb5 {[%clk 0:00:15]}  axb5 {[%clk 0:00:22]} 35. Kg1 {[%clk 0:00:14]}  Ng5 {[%clk 0:00:19]} 36. Bg2 {[%clk 0:00:14]}  f4 {[%clk 0:00:18]} 37. Qd1 {[%clk 0:00:07]}  Nxh3+ {[%clk 0:00:15]} 38. Kf1 {[%clk 0:00:07]}  Qf6 {[%clk 0:00:12]} 39. Qf3 {[%clk 0:00:02]}  Ng5 {[%clk 0:00:12]} 40. Qxd5 {[%clk 0:00:02]}  f3 {[%clk 0:00:10]} 41. Bxf3 {[%clk 0:00:02]}  Nxf3 {[%clk 0:00:11]} 42. Rxh4 {[%clk 0:00:03]}  Rxh4 {[%clk 0:00:11]} 43. Rd1 {[%clk 0:00:03]}  Rh2 {[%clk 0:00:10]} 44. Ke2 {[%clk 0:00:03]}  Ng1+ {[%clk 0:00:08]} 45. Kd3 {[%clk 0:00:03]}  Nh3 {[%clk 0:00:08]} 46. Kc2 {[%clk 0:00:03]}  Nxf2 {[%clk 0:00:08]} 47. Rd2 {[%clk 0:00:03]}  Ng4 {[%clk 0:00:08]} 48. Qe4 {[%clk 0:00:02]}  Rxd2+ {[%clk 0:00:07]} 49. Kxd2 {[%clk 0:00:03]}  Qf2+ {[%clk 0:00:07]} 50. Kd3 {[%clk 0:00:04]}  Qf1+ {[%clk 0:00:08]} 51. Kd2 {[%clk 0:00:00]}  Qd1+ {[%clk 0:00:08]} 0-1


[Site "https://www.chess.com"]

[Event "Titled Tuesday Blitz May 30 Early 2023"]
[White "Nepomniachtchi, Ian"]
[Black "Sjugirov, Sanan"]
[WhiteFideId "4168119"]
[BlackFideId "4189302"]
[WhiteElo "2781"]
[BlackElo "2569"]
[Result "1-0"]
[Round "07"]
[TimeControl "180+2"]
[Date "2023.05.30"]
[WhiteClock "0:00:12"]
[BlackClock "0:00:00"]

1. e4 {[%clk 0:03:00]}  e5 {[%clk 0:03:00]} 2. f4 {[%clk 0:03:00]}  exf4 {[%clk 0:02:57]} 3. Nf3 {[%clk 0:03:00]}  d6 {[%clk 0:02:54]} 4. Bc4 {[%clk 0:02:59]}  h6 {[%clk 0:02:50]} 5. h4 {[%clk 0:02:59]}  Nc6 {[%clk 0:02:36]} 6. d4 {[%clk 0:02:57]}  Bg4 {[%clk 0:02:26]} 7. Bxf4 {[%clk 0:02:50]}  Nf6 {[%clk 0:02:22]} 8. Nc3 {[%clk 0:02:49]}  Be7 {[%clk 0:02:09]} 9. d5 {[%clk 0:02:20]}  Ne5 {[%clk 0:02:04]} 10. Bxe5 {[%clk 0:02:16]}  dxe5 {[%clk 0:02:04]} 11. Bb5+ {[%clk 0:02:17]}  Nd7 {[%clk 0:02:00]} 12. Qd3 {[%clk 0:02:16]}  Bxf3 {[%clk 0:01:26]} 13. Bxd7+ {[%clk 0:02:15]}  Qxd7 {[%clk 0:01:21]} 14. Qxf3 {[%clk 0:02:15]}  Bb4 {[%clk 0:00:59]} 15. O-O-O {[%clk 0:02:14]}  Bxc3 {[%clk 0:00:59]} 16. Qxc3 {[%clk 0:02:14]}  O-O {[%clk 0:00:59]} 17. Qxe5 {[%clk 0:02:12]}  Rae8 {[%clk 0:00:45]} 18. Qd4 {[%clk 0:02:11]}  Qg4 {[%clk 0:00:45]} 19. Kb1 {[%clk 0:01:24]}  b6 {[%clk 0:00:39]} 20. Rhe1 {[%clk 0:00:51]}  Qxh4 {[%clk 0:00:38]} 21. a4 {[%clk 0:00:50]}  Re7 {[%clk 0:00:37]} 22. Qc3 {[%clk 0:00:40]}  Rfe8 {[%clk 0:00:30]} 23. e5 {[%clk 0:00:40]}  Qxa4 {[%clk 0:00:27]} 24. d6 {[%clk 0:00:40]}  cxd6 {[%clk 0:00:17]} 25. exd6 {[%clk 0:00:41]}  Rxe1 {[%clk 0:00:15]} 26. Rxe1 {[%clk 0:00:42]}  Rd8 {[%clk 0:00:14]} 27. Qe5 {[%clk 0:00:22]}  Qd7 {[%clk 0:00:13]} 28. Rd1 {[%clk 0:00:22]}  Qe6 {[%clk 0:00:11]} 29. Qf4 {[%clk 0:00:23]}  g5 {[%clk 0:00:11]} 30. Qd4 {[%clk 0:00:23]}  Rd7 {[%clk 0:00:09]} 31. b3 {[%clk 0:00:23]}  Kh7 {[%clk 0:00:08]} 32. Ka2 {[%clk 0:00:20]}  Kg6 {[%clk 0:00:09]} 33. Rd3 {[%clk 0:00:20]}  Qf6 {[%clk 0:00:06]} 34. Qe4+ {[%clk 0:00:19]}  Kg7 {[%clk 0:00:07]} 35. Qc6 {[%clk 0:00:19]}  Qe6 {[%clk 0:00:07]} 36. Qc3+ {[%clk 0:00:19]}  Qf6 {[%clk 0:00:06]} 37. Qc6 {[%clk 0:00:19]}  Qe6 {[%clk 0:00:07]} 38. Qc3+ {[%clk 0:00:16]}  Qf6 {[%clk 0:00:07]} 39. Qb4 {[%clk 0:00:17]}  Qe5 {[%clk 0:00:06]} 40. g4 {[%clk 0:00:15]}  Qe6 {[%clk 0:00:03]} 41. Qd2 {[%clk 0:00:14]}  Qe5 {[%clk 0:00:02]} 42. Rd5 {[%clk 0:00:14]}  Qe6 {[%clk 0:00:03]} 43. Qc3+ {[%clk 0:00:14]}  Qf6 {[%clk 0:00:03]} 44. Qd3 {[%clk 0:00:15]}  Qe6 {[%clk 0:00:03]} 45. Qd4+ {[%clk 0:00:15]}  Qf6 {[%clk 0:00:04]} 46. Qd2 {[%clk 0:00:16]}  Qe6 {[%clk 0:00:04]} 47. Rd4 {[%clk 0:00:17]}  Qe5 {[%clk 0:00:04]} 48. c4 {[%clk 0:00:16]}  a5 {[%clk 0:00:03]} 49. Ka3 {[%clk 0:00:15]}  Qc5+ {[%clk 0:00:03]} 50. Ka2 {[%clk 0:00:16]}  Qe5 {[%clk 0:00:03]} 51. Rd5 {[%clk 0:00:16]}  Qe4 {[%clk 0:00:04]} 52. Ka3 {[%clk 0:00:14]}  Qxg4 {[%clk 0:00:03]} 53. Ka4 {[%clk 0:00:14]}  Qe6 {[%clk 0:00:02]} 54. Kb5 {[%clk 0:00:15]}  g4 {[%clk 0:00:01]} 55. Kxb6 {[%clk 0:00:15]}  g3 {[%clk 0:00:02]} 56. c5 {[%clk 0:00:15]}  Qe4 {[%clk 0:00:01]} 57. c6 {[%clk 0:00:14]}  g2 {[%clk 0:00:02]} 58. Qc3+ {[%clk 0:00:13]}  Kh7 {[%clk 0:00:01]} 59. Rd1 {[%clk 0:00:12]}  Rxd6 {[%clk 0:00:01]} 60. Rxd6 {[%clk 0:00:11]}  g1=Q+ {[%clk 0:00:00]} 61. Kb7 {[%clk 0:00:12]} 1-0


[Site "https://www.chess.com"]

[Event "Titled Tuesday Blitz May 30 Early 2023"]
[White "Durarbayli, Vasif"]
[Black "Duda, Jan-Krzysztof"]
[WhiteFideId "13402935"]
[BlackFideId "1170546"]
[WhiteElo "2551"]
[BlackElo "2790"]
[Result "0-1"]
[Round "07"]
[TimeControl "180+2"]
[Date "2023.05.30"]
[WhiteClock "0:00:00"]
[BlackClock "0:00:45"]

1. e4 {[%clk 0:03:00]}  c5 {[%clk 0:02:59]} 2. Nf3 {[%clk 0:03:00]}  d6 {[%clk 0:02:59]} 3. d4 {[%clk 0:03:01]}  cxd4 {[%clk 0:02:59]} 4. Nxd4 {[%clk 0:03:02]}  Nf6 {[%clk 0:02:59]} 5. Nc3 {[%clk 0:03:02]}  a6 {[%clk 0:03:00]} 6. Be2 {[%clk 0:03:03]}  e5 {[%clk 0:02:59]} 7. Nb3 {[%clk 0:03:03]}  Be7 {[%clk 0:02:59]} 8. O-O {[%clk 0:03:04]}  O-O {[%clk 0:03:00]} 9. Re1 {[%clk 0:03:04]}  Be6 {[%clk 0:02:59]} 10. Bf3 {[%clk 0:03:04]}  Nbd7 {[%clk 0:02:59]} 11. a4 {[%clk 0:03:04]}  Nb6 {[%clk 0:02:46]} 12. Nd2 {[%clk 0:02:51]}  Rc8 {[%clk 0:02:45]} 13. Nf1 {[%clk 0:02:41]}  Rxc3 {[%clk 0:02:24]} 14. bxc3 {[%clk 0:02:41]}  Qc7 {[%clk 0:02:25]} 15. Ne3 {[%clk 0:02:26]}  Rc8 {[%clk 0:02:23]} 16. a5 {[%clk 0:02:09]}  Nc4 {[%clk 0:02:22]} 17. Nxc4 {[%clk 0:02:09]}  Qxc4 {[%clk 0:02:20]} 18. Ba3 {[%clk 0:01:59]}  Qxc3 {[%clk 0:01:58]} 19. Bxd6 {[%clk 0:01:57]}  Rd8 {[%clk 0:01:59]} 20. Bxe7 {[%clk 0:01:57]}  Rxd1 {[%clk 0:01:59]} 21. Rexd1 {[%clk 0:01:51]}  h6 {[%clk 0:02:00]} 22. h3 {[%clk 0:01:13]}  Bxh3 {[%clk 0:01:38]} 23. Ra3 {[%clk 0:01:09]}  Qxc2 {[%clk 0:01:23]} 24. gxh3 {[%clk 0:01:07]}  Nxe4 {[%clk 0:01:23]} 25. Rd8+ {[%clk 0:00:59]}  Kh7 {[%clk 0:01:22]} 26. Bxe4+ {[%clk 0:00:32]}  Qxe4 {[%clk 0:01:23]} 27. Re3 {[%clk 0:00:33]}  Qb1+ {[%clk 0:01:16]} 28. Kg2 {[%clk 0:00:32]}  Qg6+ {[%clk 0:01:08]} 29. Rg3 {[%clk 0:00:29]}  Qc6+ {[%clk 0:01:08]} 30. Rf3 {[%clk 0:00:14]}  e4 {[%clk 0:01:00]} 31. Re3 {[%clk 0:00:14]}  f5 {[%clk 0:00:53]} 32. Bd6 {[%clk 0:00:13]}  Qd5 {[%clk 0:00:48]} 33. Rd7 {[%clk 0:00:12]}  f4 {[%clk 0:00:46]} 34. Rc3 {[%clk 0:00:05]}  e3+ {[%clk 0:00:45]} 35. f3 {[%clk 0:00:00]}  Qd2+ {[%clk 0:00:45]} 0-1


[Site "https://www.chess.com"]

[Event "Titled Tuesday Blitz May 30 Early 2023"]
[White "Martinez Alcantara, Jose Eduardo"]
[Black "Ahmadzada, Ahmad"]
[WhiteFideId "3805662"]
[BlackFideId "13413007"]
[WhiteElo "2711"]
[BlackElo "2388"]
[Result "1-0"]
[Round "07"]
[TimeControl "180+2"]
[Date "2023.05.30"]
[WhiteClock "0:00:05"]
[BlackClock "0:00:00"]

1. e4 {[%clk 0:03:00]}  c5 {[%clk 0:02:56]} 2. Nf3 {[%clk 0:03:01]}  e6 {[%clk 0:02:57]} 3. c3 {[%clk 0:03:01]}  d5 {[%clk 0:02:54]} 4. e5 {[%clk 0:03:02]}  Bd7 {[%clk 0:02:51]} 5. d4 {[%clk 0:03:02]}  Qb6 {[%clk 0:02:51]} 6. Bd3 {[%clk 0:02:57]}  cxd4 {[%clk 0:02:49]} 7. cxd4 {[%clk 0:02:57]}  Bb5 {[%clk 0:02:49]} 8. O-O {[%clk 0:02:57]}  Bxd3 {[%clk 0:02:43]} 9. Qxd3 {[%clk 0:02:58]}  Qa6 {[%clk 0:02:43]} 10. Qd1 {[%clk 0:02:58]}  Nc6 {[%clk 0:02:43]} 11. Nc3 {[%clk 0:02:57]}  Nge7 {[%clk 0:02:38]} 12. a3 {[%clk 0:02:52]}  Rc8 {[%clk 0:02:24]} 13. h4 {[%clk 0:02:34]}  h5 {[%clk 0:02:19]} 14. Ne2 {[%clk 0:02:30]}  Nf5 {[%clk 0:02:18]} 15. Ng3 {[%clk 0:02:30]}  g6 {[%clk 0:02:14]} 16. Nxf5 {[%clk 0:02:28]}  gxf5 {[%clk 0:02:15]} 17. Bg5 {[%clk 0:02:27]}  Be7 {[%clk 0:02:09]} 18. Rc1 {[%clk 0:02:24]}  Kd7 {[%clk 0:02:09]} 19. Qd2 {[%clk 0:02:19]}  Rhg8 {[%clk 0:01:55]} 20. g3 {[%clk 0:02:04]}  Qa4 {[%clk 0:01:52]} 21. Rc3 {[%clk 0:01:44]}  Bxg5 {[%clk 0:01:41]} 22. hxg5 {[%clk 0:01:45]}  Na5 {[%clk 0:01:38]} 23. Rxc8 {[%clk 0:01:45]}  Rxc8 {[%clk 0:01:35]} 24. g6 {[%clk 0:01:45]}  fxg6 {[%clk 0:01:26]} 25. Qh6 {[%clk 0:01:45]}  Re8 {[%clk 0:01:19]} 26. Qxg6 {[%clk 0:01:40]}  Nc6 {[%clk 0:01:18]} 27. Rc1 {[%clk 0:01:20]}  Qb3 {[%clk 0:01:04]} 28. Qxh5 {[%clk 0:01:12]}  Qxb2 {[%clk 0:01:02]} 29. Rd1 {[%clk 0:01:12]}  Qb3 {[%clk 0:00:55]} 30. Ng5 {[%clk 0:01:12]}  Re7 {[%clk 0:00:47]} 31. Nh7 {[%clk 0:01:09]}  Kc7 {[%clk 0:00:35]} 32. Nf6 {[%clk 0:01:08]}  a5 {[%clk 0:00:31]} 33. Kg2 {[%clk 0:01:04]}  Qxa3 {[%clk 0:00:25]} 34. Ne8+ {[%clk 0:01:04]}  Kb8 {[%clk 0:00:24]} 35. Nd6 {[%clk 0:01:01]}  Qb3 {[%clk 0:00:18]} 36. Rc1 {[%clk 0:00:45]}  Qb2 {[%clk 0:00:04]} 37. Qh8+ {[%clk 0:00:31]}  Ka7 {[%clk 0:00:02]} 38. Nc8+ {[%clk 0:00:26]}  Ka6 {[%clk 0:00:01]} 39. Rxc6+ {[%clk 0:00:27]}  bxc6 {[%clk 0:00:02]} 40. Nxe7 {[%clk 0:00:28]}  Qxd4 {[%clk 0:00:02]} 41. Qa8+ {[%clk 0:00:27]}  Kb5 {[%clk 0:00:02]} 42. Qxc6+ {[%clk 0:00:25]}  Kb4 {[%clk 0:00:02]} 43. Qxe6 {[%clk 0:00:20]}  Qe4+ {[%clk 0:00:03]} 44. Kh2 {[%clk 0:00:20]}  d4 {[%clk 0:00:03]} 45. Qd6+ {[%clk 0:00:18]}  Kc3 {[%clk 0:00:02]} 46. Nd5+ {[%clk 0:00:18]}  Kc2 {[%clk 0:00:02]} 47. Nf4 {[%clk 0:00:18]}  d3 {[%clk 0:00:02]} 48. Nxd3 {[%clk 0:00:07]}  a4 {[%clk 0:00:00]} 49. Nc5 {[%clk 0:00:05]} 1-0


[Site "https://www.chess.com"]

[Event "Titled Tuesday Blitz May 30 Early 2023"]
[White "Lazavik, Denis"]
[Black "Bachmann, Axel"]
[WhiteFideId "13515110"]
[BlackFideId "3700488"]
[WhiteElo "2560"]
[BlackElo "2605"]
[Result "1-0"]
[Round "07"]
[TimeControl "180+2"]
[Date "2023.05.30"]
[WhiteClock "0:00:11"]
[BlackClock "0:00:00"]

1. d4 {[%clk 0:03:00]}  Nf6 {[%clk 0:02:58]} 2. c4 {[%clk 0:03:01]}  g6 {[%clk 0:02:57]} 3. g3 {[%clk 0:03:01]}  Bg7 {[%clk 0:02:54]} 4. Bg2 {[%clk 0:03:02]}  O-O {[%clk 0:02:53]} 5. Nc3 {[%clk 0:03:02]}  d6 {[%clk 0:02:51]} 6. Nf3 {[%clk 0:03:03]}  Nbd7 {[%clk 0:02:51]} 7. O-O {[%clk 0:03:04]}  e5 {[%clk 0:02:51]} 8. e4 {[%clk 0:03:04]}  exd4 {[%clk 0:02:50]} 9. Nxd4 {[%clk 0:03:05]}  Re8 {[%clk 0:02:51]} 10. h3 {[%clk 0:03:06]}  a6 {[%clk 0:02:47]} 11. Be3 {[%clk 0:03:06]}  Rb8 {[%clk 0:02:46]} 12. a4 {[%clk 0:03:06]}  Ne5 {[%clk 0:02:35]} 13. b3 {[%clk 0:03:06]}  c5 {[%clk 0:02:34]} 14. Nde2 {[%clk 0:03:06]}  Be6 {[%clk 0:02:32]} 15. Qc2 {[%clk 0:02:53]}  Qa5 {[%clk 0:02:26]} 16. Rad1 {[%clk 0:02:46]}  Rbd8 {[%clk 0:02:26]} 17. f4 {[%clk 0:02:32]}  Nc6 {[%clk 0:02:24]} 18. g4 {[%clk 0:02:32]}  Bc8 {[%clk 0:01:53]} 19. f5 {[%clk 0:02:09]}  gxf5 {[%clk 0:01:40]} 20. gxf5 {[%clk 0:02:06]}  Kh8 {[%clk 0:01:31]} 21. Bg5 {[%clk 0:02:00]}  Rg8 {[%clk 0:01:28]} 22. Qd2 {[%clk 0:01:59]}  Nd4 {[%clk 0:01:17]} 23. Nxd4 {[%clk 0:01:26]}  cxd4 {[%clk 0:01:18]} 24. Nd5 {[%clk 0:01:27]}  Qxd2 {[%clk 0:01:15]} 25. Rxd2 {[%clk 0:01:27]}  Nxd5 {[%clk 0:01:14]} 26. Bxd8 {[%clk 0:01:27]}  Ne3 {[%clk 0:01:02]} 27. Bb6 {[%clk 0:01:25]}  Nxf1 {[%clk 0:00:37]} 28. Kxf1 {[%clk 0:01:26]}  Be5 {[%clk 0:00:22]} 29. Bxd4 {[%clk 0:01:25]}  Kg7 {[%clk 0:00:09]} 30. Bxe5+ {[%clk 0:00:32]}  dxe5 {[%clk 0:00:10]} 31. Rd6 {[%clk 0:00:32]}  f6 {[%clk 0:00:11]} 32. Kf2 {[%clk 0:00:32]}  Kf7 {[%clk 0:00:11]} 33. Bf3 {[%clk 0:00:30]}  Ke7 {[%clk 0:00:12]} 34. Rb6 {[%clk 0:00:30]}  Rd8 {[%clk 0:00:10]} 35. Ke3 {[%clk 0:00:30]}  Rd6 {[%clk 0:00:04]} 36. a5 {[%clk 0:00:20]}  Rxb6 {[%clk 0:00:04]} 37. axb6 {[%clk 0:00:21]}  a5 {[%clk 0:00:05]} 38. c5 {[%clk 0:00:10]}  Kd7 {[%clk 0:00:05]} 39. Kd3 {[%clk 0:00:10]}  Kc6 {[%clk 0:00:00]} 40. Kc4 {[%clk 0:00:11]} 1-0


[Site "https://www.chess.com"]

[Event "Titled Tuesday Blitz May 30 Early 2023"]
[White "Deac, Bogdan-Daniel"]
[Black "Vitiugov, Nikita"]
[WhiteFideId "1226380"]
[BlackFideId "4152956"]
[WhiteElo "2649"]
[BlackElo "2673"]
[Result "1-0"]
[Round "07"]
[TimeControl "180+2"]
[Date "2023.05.30"]
[WhiteClock "0:00:03"]
[BlackClock "0:00:00"]

1. e4 {[%clk 0:03:00]}  c5 {[%clk 0:02:59]} 2. Nf3 {[%clk 0:03:00]}  e6 {[%clk 0:02:58]} 3. c3 {[%clk 0:03:00]}  Nf6 {[%clk 0:02:55]} 4. e5 {[%clk 0:03:00]}  Nd5 {[%clk 0:02:56]} 5. Bc4 {[%clk 0:03:00]}  d6 {[%clk 0:02:54]} 6. d4 {[%clk 0:02:49]}  cxd4 {[%clk 0:02:53]} 7. cxd4 {[%clk 0:02:50]}  Be7 {[%clk 0:02:53]} 8. O-O {[%clk 0:02:50]}  O-O {[%clk 0:02:53]} 9. Qe2 {[%clk 0:02:50]}  Nc6 {[%clk 0:02:48]} 10. a3 {[%clk 0:02:47]}  Bd7 {[%clk 0:02:27]} 11. Rd1 {[%clk 0:02:41]}  Rc8 {[%clk 0:02:27]} 12. Bxd5 {[%clk 0:02:01]}  exd5 {[%clk 0:02:26]} 13. Nc3 {[%clk 0:02:01]}  Be6 {[%clk 0:02:24]} 14. Bf4 {[%clk 0:01:52]}  Qd7 {[%clk 0:02:09]} 15. exd6 {[%clk 0:01:43]}  Bxd6 {[%clk 0:02:09]} 16. Bxd6 {[%clk 0:01:44]}  Qxd6 {[%clk 0:02:09]} 17. Ne5 {[%clk 0:01:33]}  Ne7 {[%clk 0:01:47]} 18. Rd3 {[%clk 0:01:10]}  Bf5 {[%clk 0:01:35]} 19. Re3 {[%clk 0:01:05]}  Ng6 {[%clk 0:01:12]} 20. Qb5 {[%clk 0:00:40]}  Be6 {[%clk 0:00:49]} 21. Rae1 {[%clk 0:00:23]}  Nxe5 {[%clk 0:00:41]} 22. Rxe5 {[%clk 0:00:22]}  b6 {[%clk 0:00:39]} 23. Qd3 {[%clk 0:00:18]}  Qd7 {[%clk 0:00:32]} 24. h4 {[%clk 0:00:17]}  h6 {[%clk 0:00:30]} 25. f4 {[%clk 0:00:15]}  g6 {[%clk 0:00:17]} 26. h5 {[%clk 0:00:09]}  Bf5 {[%clk 0:00:12]} 27. Qg3 {[%clk 0:00:08]}  Kh8 {[%clk 0:00:05]} 28. hxg6 {[%clk 0:00:06]}  fxg6 {[%clk 0:00:04]} 29. Qh4 {[%clk 0:00:06]}  Qg7 {[%clk 0:00:02]} 30. Re7 {[%clk 0:00:06]}  Qxd4+ {[%clk 0:00:01]} 31. Kh1 {[%clk 0:00:05]}  Kg8 {[%clk 0:00:01]} 32. Qxh6 {[%clk 0:00:04]}  Qh8 {[%clk 0:00:01]} 33. Qxh8+ {[%clk 0:00:04]}  Kxh8 {[%clk 0:00:02]} 34. Nxd5 {[%clk 0:00:05]}  Rcd8 {[%clk 0:00:00]} 35. Nc3 {[%clk 0:00:03]} 1-0


[Site "https://www.chess.com"]

[Event "Titled Tuesday Blitz May 30 Early 2023"]
[White "Babazada, Khazar"]
[Black "Dragnev, Valentin"]
[WhiteFideId "13413554"]
[BlackFideId "1634852"]
[WhiteElo "2351"]
[BlackElo "2487"]
[Result "1-0"]
[Round "07"]
[TimeControl "180+2"]
[Date "2023.05.30"]
[WhiteClock "0:00:16"]
[BlackClock "0:00:13"]

1. e4 {[%clk 0:03:00]}  c5 {[%clk 0:02:59]} 2. Nf3 {[%clk 0:02:59]}  d6 {[%clk 0:03:00]} 3. d4 {[%clk 0:03:00]}  cxd4 {[%clk 0:03:01]} 4. Nxd4 {[%clk 0:03:01]}  Nf6 {[%clk 0:03:01]} 5. Nc3 {[%clk 0:02:59]}  a6 {[%clk 0:03:02]} 6. Be2 {[%clk 0:02:59]}  e5 {[%clk 0:03:02]} 7. Nb3 {[%clk 0:02:58]}  Be6 {[%clk 0:03:03]} 8. f4 {[%clk 0:02:56]}  Qc7 {[%clk 0:03:01]} 9. O-O {[%clk 0:02:55]}  Nbd7 {[%clk 0:03:01]} 10. Be3 {[%clk 0:02:49]}  Rc8 {[%clk 0:03:00]} 11. a4 {[%clk 0:02:38]}  Nb6 {[%clk 0:02:51]} 12. f5 {[%clk 0:02:32]}  Nc4 {[%clk 0:02:35]} 13. Bc1 {[%clk 0:02:17]}  Bd7 {[%clk 0:02:27]} 14. Kh1 {[%clk 0:02:04]}  Be7 {[%clk 0:02:23]} 15. a5 {[%clk 0:01:57]}  O-O {[%clk 0:02:21]} 16. Bxc4 {[%clk 0:01:40]}  Qxc4 {[%clk 0:02:21]} 17. Bg5 {[%clk 0:01:41]}  Bc6 {[%clk 0:02:12]} 18. Nd2 {[%clk 0:01:36]}  Qb4 {[%clk 0:02:12]} 19. Ra2 {[%clk 0:01:35]}  h6 {[%clk 0:02:06]} 20. Bxf6 {[%clk 0:01:34]}  Bxf6 {[%clk 0:02:07]} 21. Qf3 {[%clk 0:01:08]}  Bg5 {[%clk 0:02:05]} 22. Rd1 {[%clk 0:01:08]}  Rfd8 {[%clk 0:01:54]} 23. Nf1 {[%clk 0:01:07]}  Qc5 {[%clk 0:01:34]} 24. g3 {[%clk 0:00:47]}  b5 {[%clk 0:01:21]} 25. h4 {[%clk 0:00:48]}  Bf6 {[%clk 0:01:18]} 26. Ne3 {[%clk 0:00:48]}  b4 {[%clk 0:01:15]} 27. Ncd5 {[%clk 0:00:48]}  Bxd5 {[%clk 0:01:15]} 28. Rxd5 {[%clk 0:00:46]}  Qa7 {[%clk 0:01:05]} 29. Ra1 {[%clk 0:00:46]}  Rc6 {[%clk 0:00:56]} 30. Rad1 {[%clk 0:00:45]}  Qc7 {[%clk 0:00:57]} 31. R5d2 {[%clk 0:00:37]}  Qxa5 {[%clk 0:00:56]} 32. Nd5 {[%clk 0:00:37]}  Rdc8 {[%clk 0:00:53]} 33. Qg4 {[%clk 0:00:35]}  Kf8 {[%clk 0:00:53]} 34. Qh5 {[%clk 0:00:28]}  Rxc2 {[%clk 0:00:47]} 35. Nxf6 {[%clk 0:00:27]}  gxf6 {[%clk 0:00:35]} 36. Qxh6+ {[%clk 0:00:24]}  Ke7 {[%clk 0:00:36]} 37. Rxd6 {[%clk 0:00:23]}  b3 {[%clk 0:00:15]} 38. Rd7+ {[%clk 0:00:16]}  Ke8 {[%clk 0:00:13]} 39. Qh8# {[%clk 0:00:16]} 1-0


[Site "https://www.chess.com"]

[Event "Titled Tuesday Blitz May 30 Early 2023"]
[White "Narayanan.S.L"]
[Black "Veiga, Jose Francisco R P Neves"]
[WhiteFideId "5058422"]
[BlackFideId "1930087"]
[WhiteElo "2563"]
[BlackElo "2320"]
[Result "1-0"]
[Round "07"]
[TimeControl "180+2"]
[Date "2023.05.30"]
[WhiteClock "0:00:56"]
[BlackClock "0:00:04"]

1. Nf3 {[%clk 0:03:00]}  Nf6 {[%clk 0:02:59]} 2. g3 {[%clk 0:03:00]}  g6 {[%clk 0:02:59]} 3. Bg2 {[%clk 0:03:00]}  Bg7 {[%clk 0:03:00]} 4. b3 {[%clk 0:03:00]}  c5 {[%clk 0:02:58]} 5. Bb2 {[%clk 0:03:00]}  Nc6 {[%clk 0:02:58]} 6. O-O {[%clk 0:02:59]}  O-O {[%clk 0:02:58]} 7. e3 {[%clk 0:03:00]}  d6 {[%clk 0:02:55]} 8. d4 {[%clk 0:02:59]}  Bf5 {[%clk 0:02:53]} 9. a3 {[%clk 0:02:55]}  Ne4 {[%clk 0:02:47]} 10. Nh4 {[%clk 0:02:52]}  d5 {[%clk 0:02:41]} 11. Nxf5 {[%clk 0:02:51]}  gxf5 {[%clk 0:02:40]} 12. c3 {[%clk 0:02:47]}  e6 {[%clk 0:02:40]} 13. Nd2 {[%clk 0:02:47]}  cxd4 {[%clk 0:02:37]} 14. cxd4 {[%clk 0:02:43]}  Rc8 {[%clk 0:02:37]} 15. b4 {[%clk 0:02:38]}  a5 {[%clk 0:02:33]} 16. b5 {[%clk 0:02:36]}  Na7 {[%clk 0:02:26]} 17. a4 {[%clk 0:02:35]}  Qd7 {[%clk 0:01:54]} 18. Nf3 {[%clk 0:02:10]}  Rc4 {[%clk 0:01:46]} 19. Ne5 {[%clk 0:02:09]}  Bxe5 {[%clk 0:01:47]} 20. dxe5 {[%clk 0:02:09]}  Rfc8 {[%clk 0:01:48]} 21. Bd4 {[%clk 0:02:09]}  Nc5 {[%clk 0:01:43]} 22. Kh1 {[%clk 0:02:05]}  b6 {[%clk 0:01:41]} 23. g4 {[%clk 0:02:05]}  fxg4 {[%clk 0:01:20]} 24. Qxg4+ {[%clk 0:02:05]}  Kh8 {[%clk 0:01:21]} 25. Rg1 {[%clk 0:02:05]}  Rg8 {[%clk 0:01:17]} 26. Qf4 {[%clk 0:02:03]}  Qe7 {[%clk 0:01:08]} 27. Bf3 {[%clk 0:02:04]}  Rg6 {[%clk 0:00:59]} 28. Rxg6 {[%clk 0:02:00]}  fxg6 {[%clk 0:00:54]} 29. h4 {[%clk 0:02:01]}  Nb3 {[%clk 0:00:50]} 30. Rg1 {[%clk 0:01:58]}  Nxd4 {[%clk 0:00:50]} 31. exd4 {[%clk 0:01:59]}  Rxa4 {[%clk 0:00:28]} 32. h5 {[%clk 0:01:58]}  Nxb5 {[%clk 0:00:28]} 33. hxg6 {[%clk 0:01:58]}  Rxd4 {[%clk 0:00:27]} 34. Qg3 {[%clk 0:01:37]}  Qh4+ {[%clk 0:00:25]} 35. Kg2 {[%clk 0:01:28]}  Qxg3+ {[%clk 0:00:25]} 36. Kxg3 {[%clk 0:01:29]}  hxg6 {[%clk 0:00:26]} 37. Bg4 {[%clk 0:01:29]}  Re4 {[%clk 0:00:21]} 38. f4 {[%clk 0:01:17]}  Nd4 {[%clk 0:00:19]} 39. Rc1 {[%clk 0:01:15]}  g5 {[%clk 0:00:12]} 40. fxg5 {[%clk 0:01:10]}  Rxe5 {[%clk 0:00:12]} 41. Kh4 {[%clk 0:01:10]}  Nf5+ {[%clk 0:00:06]} 42. Kh5 {[%clk 0:01:10]}  Ne7 {[%clk 0:00:06]} 43. Rc7 {[%clk 0:01:03]}  Nf5 {[%clk 0:00:05]} 44. Kg6 {[%clk 0:00:59]}  Nd6 {[%clk 0:00:05]} 45. Rd7 {[%clk 0:00:56]}  Rxg5+ {[%clk 0:00:06]} 46. Kxg5 {[%clk 0:00:56]}  Ne4+ {[%clk 0:00:04]} 47. Kg6 {[%clk 0:00:56]} 1-0


[Site "https://www.chess.com"]